fUSD/lending_fUSD_20260611
["ID","MTS","AMOUNT","RATE_DAILY","PERIOD"]
[424750031,1781124639000,-500.0,0.00012465,2]
[424750033,1781124639000,-500.0,0.00012465,2]
[424750032,1781124639000,-500.0,0.00012465,2]
[424750034,1781124639000,-250.0,0.00012465,2]
[424750040,1781124639000,-150.0,0.00012565,2]
[424750039,1781124639000,-500.0,0.00012565,2]
[424750041,1781124639000,-224.0,0.00012565,2]
[424750036,1781124639000,-810.59526114,0.00012479,2]
[424750037,1781124639000,-5211.78149199,0.00012479,2]
[424750038,1781124639000,-2371.11,0.00012515,2]
[424750042,1781124639000,-229.0,0.00012565,2]
[424750043,1781124639000,-227.0,0.00012565,2]
[424750044,1781124639000,-221.0,0.00012565,2]
[424750002,1781124639000,-433.0,0.00012159,2]
[424750026,1781124639000,-300.0,0.00012464,2]
[424750025,1781124639000,-666.0,0.00012464,2]
[424750023,1781124639000,-300.0,0.00012464,2]
[424750022,1781124639000,-300.0,0.00012464,2]
[424750006,1781124639000,-828.87461173,0.00012206,2]
[424750007,1781124639000,-828.87461173,0.00012219,2]
[424750008,1781124639000,-828.87461173,0.00012232,2]
[424750001,1781124639000,-828.87461173,0.00012153,2]
[424750005,1781124639000,-828.87461173,0.00012193,2]
[424750004,1781124639000,-828.87461173,0.0001218,2]
[424750024,1781124639000,-300.0,0.00012464,2]
[424750009,1781124639000,-828.87461173,0.00012244,2]
[424750011,1781124639000,-828.87461173,0.00012257,2]
[424750010,1781124639000,-394.38971982,0.00012252,2]
[424750003,1781124639000,-828.87461173,0.00012167,2]
[424750013,1781124639000,-828.87461173,0.00012281,2]
[424750012,1781124639000,-828.87461173,0.00012269,2]
[424750014,1781124639000,-500.0,0.00012291,2]
[424750015,1781124639000,-828.87461173,0.00012293,2]
[424750020,1781124639000,-150.0,0.00012462,2]
[424750016,1781124639000,-656.47813455,0.00012405,2]
[424750019,1781124639000,-879.26,0.00012417,2]
[424750018,1781124639000,-49474.18506095,0.00012415,2]
[424750017,1781124639000,-27413.68844139,0.00012415,2]
[424750084,1781124640000,-150.0,0.00013488,2]
[424750082,1781124640000,-150.0,0.00013488,2]
[424750083,1781124640000,-203.80794025,0.00013488,2]
[424750081,1781124640000,-150.0,0.00013488,2]
[424750066,1781124640000,-27413.68844139,0.00012886,2]
[424750077,1781124640000,-150.0,0.00013488,2]
[424750075,1781124640000,-150.0,0.00013488,2]
[424750064,1781124640000,-666.0,0.0001287,2]
[424750078,1781124640000,-150.0,0.00013488,2]
[424750080,1781124640000,-150.0,0.00013488,2]
[424750079,1781124640000,-150.0,0.00013488,2]
[424750092,1781124640000,-583.536406,0.00013615,2]
[424750076,1781124640000,-150.0,0.00013488,2]
[424750086,1781124640000,-160.0,0.00013548,2]
[424750088,1781124640000,-785.231859,0.00013548,2]
[424750087,1781124640000,-472.615929,0.00013548,2]
[424750091,1781124640000,-160.0,0.00013615,2]
[424750089,1781124640000,-150.0,0.0001355,2]
[424750090,1781124640000,-150.0,0.00013613,2]
[424750094,1781124640000,-150.0,0.00013675,2]
[424750095,1781124640000,-500.0,0.00013698,2]
[424750093,1781124640000,-1007.072813,0.00013615,2]
[424750070,1781124640000,-300.0,0.00013346,2]
[424750085,1781124640000,-13993.62283355,0.00013516,2]
[424750069,1781124640000,-502.32,0.00013189,2]
[424750048,1781124640000,-500.0,0.00012674,2]
[424750067,1781124640000,-49474.18506095,0.00012886,2]
[424750049,1781124640000,-500.0,0.00012674,2]
[424750046,1781124640000,-500.0,0.00012674,2]
[424750045,1781124640000,-500.0,0.00012674,2]
[424750047,1781124640000,-500.0,0.00012674,2]
[424750052,1781124640000,-500.0,0.00012674,2]
[424750051,1781124640000,-500.0,0.00012674,2]
[424750050,1781124640000,-500.0,0.00012674,2]
[424750053,1781124640000,-500.0,0.00012674,2]
[424750055,1781124640000,-500.0,0.00012674,2]
[424750054,1781124640000,-500.0,0.00012674,2]
[424750059,1781124640000,-230.9383663,0.00012674,2]
[424750058,1781124640000,-500.0,0.00012674,2]
[424750056,1781124640000,-500.0,0.00012674,2]
[424750060,1781124640000,-13993.62283355,0.00012824,2]
[424750063,1781124640000,-300.0,0.0001287,2]
[424750061,1781124640000,-541.3104,0.00012839,2]
[424750057,1781124640000,-500.0,0.00012674,2]
[424750062,1781124640000,-300.0,0.0001287,2]
[424750065,1781124640000,-300.0,0.00012885,2]
[424750071,1781124640000,-27413.68844139,0.00013358,2]
[424750074,1781124640000,-150.0,0.00013488,2]
[424750072,1781124640000,-49474.18506095,0.00013358,2]
[424750073,1781124640000,-736.0,0.00013375,2]
[424750068,1781124640000,-250.0,0.00013009,2]
[424750096,1781124640000,-537.14703498,0.00013698,2]
[424750147,1781124640000,-150.0,0.00013737,2]
[424750099,1781124640000,-880.13,0.00013698,2]
[424750122,1781124640000,-316.16211611,0.00013698,2]
[424750127,1781124640000,-500.0,0.00013698,2]
[424750131,1781124640000,-500.0,0.00013698,2]
[424750129,1781124640000,-500.0,0.00013698,2]
[424750137,1781124640000,-500.0,0.00013698,2]
[424750132,1781124640000,-500.0,0.00013698,2]
[424750130,1781124640000,-500.0,0.00013698,2]
[424750138,1781124640000,-500.0,0.00013698,2]
[424750136,1781124640000,-500.0,0.00013698,2]
[424750135,1781124640000,-500.0,0.00013698,2]
[424750133,1781124640000,-500.0,0.00013698,2]
[424750134,1781124640000,-500.0,0.00013698,2]
[424750139,1781124640000,-500.0,0.00013698,2]
[424750141,1781124640000,-968.49,0.00013699,2]
[424750143,1781124640000,-150.0,0.000137,2]
[424750140,1781124640000,-200.0,0.00013699,2]
[424750142,1781124640000,-674.88,0.00013699,2]
[424750148,1781124640000,-308.74725217,0.00013752,2]
[424750145,1781124640000,-278.37577561,0.000137,2]
[424750144,1781124640000,-150.0,0.000137,2]
[424750097,1781124640000,-500.0,0.00013698,2]
[424750149,1781124640000,-3827.05435794,0.00013759,2]
[424750150,1781124640000,-150.0,0.00013787,2]
[424750125,1781124640000,-500.0,0.00013698,2]
[424750123,1781124640000,-407.97689245,0.00013698,2]
[424750146,1781124640000,-150.0,0.00013702,2]
[424750124,1781124640000,-500.0,0.00013698,2]
[424750126,1781124640000,-500.0,0.00013698,2]
[424750109,1781124640000,-500.0,0.00013698,2]
[424750101,1781124640000,-1134.29,0.00013698,2]
[424750104,1781124640000,-500.0,0.00013698,2]
[424750107,1781124640000,-500.0,0.00013698,2]
[424750100,1781124640000,-880.13,0.00013698,2]
[424750105,1781124640000,-500.0,0.00013698,2]
[424750098,1781124640000,-880.13,0.00013698,2]
[424750103,1781124640000,-500.0,0.00013698,2]
[424750106,1781124640000,-500.0,0.00013698,2]
[424750108,1781124640000,-500.0,0.00013698,2]
[424750111,1781124640000,-500.0,0.00013698,2]
[424750102,1781124640000,-500.0,0.00013698,2]
[424750112,1781124640000,-630.39633207,0.00013698,2]
[424750110,1781124640000,-500.0,0.00013698,2]
[424750119,1781124640000,-500.0,0.00013698,2]
[424750120,1781124640000,-500.0,0.00013698,2]
[424750128,1781124640000,-500.0,0.00013698,2]
[424750116,1781124640000,-500.0,0.00013698,2]
[424750121,1781124640000,-500.0,0.00013698,2]
[424750118,1781124640000,-500.0,0.00013698,2]
[424750117,1781124640000,-500.0,0.00013698,2]
[424750114,1781124640000,-500.0,0.00013698,2]
[424750113,1781124640000,-500.0,0.00013698,2]
[424750115,1781124640000,-500.0,0.00013698,2]
[424750175,1781124641000,-663.87,0.00014018,2]
[424750181,1781124641000,-160.0,0.00014155,2]
[424750179,1781124641000,-150.0,0.00014112,2]
[424750180,1781124641000,-150.0,0.0001413,2]
[424750183,1781124641000,-489.769345,0.00014155,2]
[424750178,1781124641000,-150.0,0.00014087,2]
[424750182,1781124641000,-324.884672,0.00014155,2]
[424750187,1781124641000,-644.476268,0.00014225,2]
[424750186,1781124641000,-13993.62283355,0.00014208,2]
[424750174,1781124641000,-2000.0,0.00014018,2]
[424750190,1781124641000,-795.731463,0.00014296,2]
[424750184,1781124641000,-150.0,0.00014175,2]
[424750189,1781124641000,-150.0,0.00014237,2]
[424750188,1781124641000,-150.0,0.00014237,2]
[424750191,1781124641000,-150.0,0.00014299,2]
[424750192,1781124641000,-300.0,0.000143,2]
[424750194,1781124641000,-666.0,0.000143,2]
[424750193,1781124641000,-300.0,0.000143,2]
[424750196,1781124641000,-1472.55704812,0.00014301,2]
[424750170,1781124641000,-500.0,0.00013999,2]
[424750198,1781124641000,-49474.18506095,0.00014301,2]
[424750185,1781124641000,-10578.68411827,0.00014192,2]
[424750172,1781124641000,-500.0,0.00013999,2]
[424750160,1781124641000,-150.0,0.00013862,2]
[424750171,1781124641000,-500.0,0.00013999,2]
[424750200,1781124641000,-35668.6001027,0.00014344,2]
[424750151,1781124641000,-150.0,0.000138,2]
[424750152,1781124641000,-500.0,0.00013823,2]
[424750154,1781124641000,-27413.68844139,0.00013829,2]
[424750153,1781124641000,-300.0,0.00013823,2]
[424750156,1781124641000,-160.0,0.00013847,2]
[424750155,1781124641000,-49474.18506095,0.00013829,2]
[424750157,1781124641000,-275.642358,0.00013847,2]
[424750159,1781124641000,-150.0,0.00013862,2]
[424750164,1781124641000,-150.0,0.00013987,2]
[424750167,1781124641000,-500.0,0.00013999,2]
[424750165,1781124641000,-300.0,0.00013989,2]
[424750161,1781124641000,-7100.0,0.000139,5]
[424750166,1781124641000,-26563.13130266,0.0001399,2]
[424750163,1781124641000,-150.0,0.00013925,2]
[424750158,1781124641000,-391.284716,0.00013847,2]
[424750162,1781124641000,-150.0,0.00013916,2]
[424750168,1781124641000,-500.0,0.00013999,2]
[424750169,1781124641000,-1134.29,0.00013999,2]
[424750176,1781124641000,-150.0,0.0001405,2]
[424750177,1781124641000,-273.047816,0.00014085,2]
[424750173,1781124641000,-250.0,0.00014,2]
[424750197,1781124641000,-27413.68844139,0.00014301,2]
[424750195,1781124641000,-300.0,0.000143,2]
[424750203,1781124641000,-150.0,0.00014387,2]
[424750226,1781124641000,-500.0,0.000144,2]
[424750227,1781124641000,-500.0,0.000144,2]
[424750230,1781124641000,-500.0,0.000144,2]
[424750229,1781124641000,-500.0,0.000144,2]
[424750232,1781124641000,-500.0,0.000144,2]
[424750233,1781124641000,-500.0,0.000144,2]
[424750231,1781124641000,-500.0,0.000144,2]
[424750234,1781124641000,-500.0,0.000144,2]
[424750237,1781124641000,-500.0,0.000144,2]
[424750236,1781124641000,-500.0,0.000144,2]
[424750219,1781124641000,-500.0,0.000144,2]
[424750238,1781124641000,-500.0,0.000144,2]
[424750239,1781124641000,-500.0,0.000144,2]
[424750243,1781124641000,-500.0,0.000144,2]
[424750244,1781124641000,-500.0,0.000144,2]
[424750241,1781124641000,-500.0,0.000144,2]
[424750246,1781124641000,-500.0,0.000144,2]
[424750245,1781124641000,-500.0,0.000144,2]
[424750247,1781124641000,-500.0,0.000144,2]
[424750248,1781124641000,-500.0,0.000144,2]
[424750240,1781124641000,-500.0,0.000144,2]
[424750199,1781124641000,-1410.87,0.00014312,2]
[424750235,1781124641000,-500.0,0.000144,2]
[424750224,1781124641000,-500.0,0.000144,2]
[424750242,1781124641000,-500.0,0.000144,2]
[424750223,1781124641000,-500.0,0.000144,2]
[424750228,1781124641000,-500.0,0.000144,2]
[424750201,1781124641000,-150.0,0.00014344,2]
[424750205,1781124641000,-928.47736,0.00014398,2]
[424750249,1781124641000,-500.0,0.000144,2]
[424750202,1781124641000,-150.0,0.00014362,2]
[424750206,1781124641000,-3713.909439,0.00014398,2]
[424750208,1781124641000,-500.0,0.000144,2]
[424750207,1781124641000,-500.0,0.000144,2]
[424750209,1781124641000,-500.0,0.000144,2]
[424750211,1781124641000,-500.0,0.000144,2]
[424750210,1781124641000,-500.0,0.000144,2]
[424750204,1781124641000,-656.47813455,0.00014391,2]
[424750214,1781124641000,-500.0,0.000144,2]
[424750215,1781124641000,-500.0,0.000144,2]
[424750217,1781124641000,-500.0,0.000144,2]
[424750212,1781124641000,-500.0,0.000144,2]
[424750216,1781124641000,-500.0,0.000144,2]
[424750218,1781124641000,-500.0,0.000144,2]
[424750221,1781124641000,-500.0,0.000144,2]
[424750220,1781124641000,-500.0,0.000144,2]
[424750222,1781124641000,-500.0,0.000144,2]
[424750225,1781124641000,-500.0,0.000144,2]
[424750213,1781124641000,-500.0,0.000144,2]
[424750282,1781124642000,-500.0,0.000144,2]
[424750285,1781124642000,-500.0,0.000144,2]
[424750281,1781124642000,-500.0,0.000144,2]
[424750276,1781124642000,-500.0,0.000144,2]
[424750278,1781124642000,-500.0,0.000144,2]
[424750279,1781124642000,-500.0,0.000144,2]
[424750277,1781124642000,-500.0,0.000144,2]
[424750273,1781124642000,-500.0,0.000144,2]
[424750280,1781124642000,-500.0,0.000144,2]
[424750286,1781124642000,-500.0,0.000144,2]
[424750295,1781124642000,-3631.6301769,0.00014401,2]
[424750284,1781124642000,-500.0,0.000144,2]
[424750287,1781124642000,-500.0,0.000144,2]
[424750288,1781124642000,-300.0,0.000144,2]
[424750292,1781124642000,-2651.4614168,0.00014401,2]
[424750289,1781124642000,-300.0,0.000144,2]
[424750290,1781124642000,-300.0,0.000144,2]
[424750291,1781124642000,-166505.6795037,0.00014401,2]
[424750293,1781124642000,-228.72469218,0.00014401,2]
[424750274,1781124642000,-500.0,0.000144,2]
[424750296,1781124642000,-151.0,0.00014401,2]
[424750283,1781124642000,-500.0,0.000144,2]
[424750275,1781124642000,-500.0,0.000144,2]
[424750261,1781124642000,-500.0,0.000144,2]
[424750272,1781124642000,-500.0,0.000144,2]
[424750297,1781124642000,-1048170.7112267,0.00014401,2]
[424750251,1781124642000,-500.0,0.000144,2]
[424750252,1781124642000,-500.0,0.000144,2]
[424750257,1781124642000,-500.0,0.000144,2]
[424750256,1781124642000,-500.0,0.000144,2]
[424750250,1781124642000,-500.0,0.000144,2]
[424750254,1781124642000,-500.0,0.000144,2]
[424750255,1781124642000,-500.0,0.000144,2]
[424750258,1781124642000,-500.0,0.000144,2]
[424750253,1781124642000,-500.0,0.000144,2]
[424750259,1781124642000,-500.0,0.000144,2]
[424750260,1781124642000,-500.0,0.000144,2]
[424750264,1781124642000,-500.0,0.000144,2]
[424750266,1781124642000,-500.0,0.000144,2]
[424750263,1781124642000,-500.0,0.000144,2]
[424750267,1781124642000,-500.0,0.000144,2]
[424750262,1781124642000,-500.0,0.000144,2]
[424750265,1781124642000,-500.0,0.000144,2]
[424750268,1781124642000,-500.0,0.000144,2]
[424750271,1781124642000,-500.0,0.000144,2]
[424750269,1781124642000,-500.0,0.000144,2]
[424750270,1781124642000,-500.0,0.000144,2]
[424750305,1781124642000,-150.0,0.00014549,2]
[424750294,1781124642000,-874642.6298679,0.00014401,2]
[424750337,1781124642000,-13652.47801013,0.000149,3]
[424750329,1781124642000,-933.0,0.00014812,2]
[424750324,1781124642000,-382.0,0.00014812,2]
[424750332,1781124642000,-150.0,0.00014861,2]
[424750338,1781124642000,-810.59526114,0.000149,2]
[424750340,1781124642000,-2100.0,0.000149,5]
[424750333,1781124642000,-443.024553,0.00014863,2]
[424750335,1781124642000,-500.0,0.00014899,2]
[424750334,1781124642000,-880.13,0.00014899,2]
[424750336,1781124642000,-9184.8235,0.000149,2]
[424750331,1781124642000,-162.09715989,0.00014861,2]
[424750353,1781124642000,-150.0,0.00014986,2]
[424750343,1781124642000,-13993.62283355,0.000149,2]
[424750356,1781124642000,-150.0,0.00014986,2]
[424750342,1781124642000,-1400.0,0.000149,5]
[424750344,1781124642000,-7100.0,0.000149,5]
[424750348,1781124642000,-162.09715989,0.00014931,2]
[424750346,1781124642000,-150.0,0.00014924,2]
[424750350,1781124642000,-1555.5,0.00014961,2]
[424750351,1781124642000,-243.46,0.00014985,2]
[424750302,1781124642000,-150.0,0.00014487,2]
[424750345,1781124642000,-5211.78149199,0.000149,2]
[424750323,1781124642000,-1358.0,0.00014812,2]
[424750327,1781124642000,-150.0,0.00014812,2]
[424750330,1781124642000,-419.0,0.00014812,2]
[424750321,1781124642000,-7100.0,0.000148,5]
[424750307,1781124642000,-150.0,0.00014612,2]
[424750304,1781124642000,-375.875942,0.0001454,2]
[424750298,1781124642000,-177.0,0.00014401,2]
[424750301,1781124642000,-150.0,0.00014424,2]
[424750306,1781124642000,-150.0,0.00014558,2]
[424750300,1781124642000,-1500.0,0.00014413,2]
[424750303,1781124642000,-502.32,0.00014508,2]
[424750320,1781124642000,-1400.0,0.000148,5]
[424750309,1781124642000,-150.0,0.00014674,2]
[424750308,1781124642000,-150.0,0.00014612,2]
[424750310,1781124642000,-150.0,0.00014687,2]
[424750317,1781124642000,-162.09715989,0.00014792,2]
[424750299,1781124642000,-177.35541125,0.00014401,2]
[424750314,1781124642000,-150.0,0.00014737,2]
[424750315,1781124642000,-150.0,0.00014772,2]
[424750311,1781124642000,-2100.0,0.000147,5]
[424750312,1781124642000,-1400.0,0.000147,5]
[424750318,1781124642000,-150.0,0.00014799,2]
[424750319,1781124642000,-2100.0,0.000148,5]
[424750322,1781124642000,-3556.0,0.00014812,2]
[424750313,1781124642000,-1252.0,0.00014712,2]
[424750325,1781124642000,-1274.0,0.00014812,2]
[424750326,1781124642000,-150.0,0.00014812,2]
[424750404,1781124643000,-1134.29,0.00014999,2]
[424750407,1781124643000,-1134.29,0.00014999,2]
[424750408,1781124643000,-1134.29,0.00014999,2]
[424750414,1781124643000,-1134.29,0.00014999,2]
[424750388,1781124643000,-880.13,0.00014999,2]
[424750405,1781124643000,-1134.29,0.00014999,2]
[424750392,1781124643000,-880.13,0.00014999,2]
[424750395,1781124643000,-880.13,0.00014999,2]
[424750406,1781124643000,-1134.29,0.00014999,2]
[424750415,1781124643000,-1134.29,0.00014999,2]
[424750409,1781124643000,-1134.29,0.00014999,2]
[424750424,1781124643000,-1134.29,0.00014999,2]
[424750412,1781124643000,-1134.29,0.00014999,2]
[424750411,1781124643000,-1134.29,0.00014999,2]
[424750413,1781124643000,-1134.29,0.00014999,2]
[424750417,1781124643000,-1134.29,0.00014999,2]
[424750416,1781124643000,-1134.29,0.00014999,2]
[424750419,1781124643000,-1134.29,0.00014999,2]
[424750418,1781124643000,-1134.29,0.00014999,2]
[424750420,1781124643000,-1134.29,0.00014999,2]
[424750421,1781124643000,-1134.29,0.00014999,2]
[424750422,1781124643000,-1134.29,0.00014999,2]
[424750390,1781124643000,-880.13,0.00014999,2]
[424750410,1781124643000,-1134.29,0.00014999,2]
[424750403,1781124643000,-880.19,0.00014999,2]
[424750360,1781124643000,-150.0,0.00014986,2]
[424750401,1781124643000,-880.13,0.00014999,2]
[424750358,1781124643000,-150.0,0.00014986,2]
[424750362,1781124643000,-150.0,0.00014986,2]
[424750367,1781124643000,-500.0,0.00014999,2]
[424750370,1781124643000,-500.0,0.00014999,2]
[424750369,1781124643000,-500.0,0.00014999,2]
[424750368,1781124643000,-500.0,0.00014999,2]
[424750364,1781124643000,-300.0,0.00014998,2]
[424750371,1781124643000,-500.0,0.00014999,2]
[424750366,1781124643000,-300.0,0.00014998,2]
[424750373,1781124643000,-880.13,0.00014999,2]
[424750372,1781124643000,-500.0,0.00014999,2]
[424750374,1781124643000,-880.13,0.00014999,2]
[424750381,1781124643000,-880.13,0.00014999,2]
[424750385,1781124643000,-880.13,0.00014999,2]
[424750378,1781124643000,-880.13,0.00014999,2]
[424750376,1781124643000,-880.13,0.00014999,2]
[424750383,1781124643000,-880.13,0.00014999,2]
[424750375,1781124643000,-880.13,0.00014999,2]
[424750377,1781124643000,-880.13,0.00014999,2]
[424750379,1781124643000,-880.13,0.00014999,2]
[424750380,1781124643000,-880.13,0.00014999,2]
[424750397,1781124643000,-880.13,0.00014999,2]
[424750399,1781124643000,-880.13,0.00014999,2]
[424750402,1781124643000,-880.13,0.00014999,2]
[424750423,1781124643000,-1134.29,0.00014999,2]
[424750474,1781124643000,-2000.0,0.00015,2]
[424750427,1781124643000,-500.0,0.00014999,2]
[424750457,1781124643000,-2043769.70168203,0.00015,2]
[424750456,1781124643000,-300.0,0.00014999,2]
[424750454,1781124643000,-225.08989443,0.00014999,2]
[424750460,1781124643000,-150.0,0.00015,2]
[424750461,1781124643000,-5060.50245357,0.00015,2]
[424750459,1781124643000,-222.0,0.00015,2]
[424750462,1781124643000,-400.0,0.00015,2]
[424750464,1781124643000,-2000.0,0.00015,2]
[424750463,1781124643000,-241.49,0.00015,2]
[424750473,1781124643000,-312.33,0.00015,2]
[424750465,1781124643000,-2000.0,0.00015,2]
[424750472,1781124643000,-2000.0,0.00015,2]
[424750469,1781124643000,-349.59,0.00015,2]
[424750467,1781124643000,-2000.0,0.00015,2]
[424750471,1781124643000,-2000.0,0.00015,2]
[424750468,1781124643000,-2000.0,0.00015,2]
[424750475,1781124643000,-587.39,0.00015,2]
[424750478,1781124643000,-176.86,0.00015,2]
[424750476,1781124643000,-2000.0,0.00015,2]
[424750480,1781124643000,-1044.22,0.00015,2]
[424750479,1781124643000,-1740.36,0.00015,2]
[424750477,1781124643000,-2000.0,0.00015,2]
[424750425,1781124643000,-1134.37,0.00014999,2]
[424750458,1781124643000,-6690236.91417174,0.00015,2]
[424750455,1781124643000,-300.0,0.00014999,2]
[424750466,1781124643000,-2000.0,0.00015,2]
[424750453,1781124643000,-500.0,0.00014999,2]
[424750426,1781124643000,-500.0,0.00014999,2]
[424750451,1781124643000,-500.0,0.00014999,2]
[424750428,1781124643000,-500.0,0.00014999,2]
[424750429,1781124643000,-500.0,0.00014999,2]
[424750431,1781124643000,-500.0,0.00014999,2]
[424750430,1781124643000,-500.0,0.00014999,2]
[424750432,1781124643000,-500.0,0.00014999,2]
[424750435,1781124643000,-383.69,0.00014999,2]
[424750436,1781124643000,-500.0,0.00014999,2]
[424750433,1781124643000,-500.0,0.00014999,2]
[424750438,1781124643000,-500.0,0.00014999,2]
[424750448,1781124643000,-500.0,0.00014999,2]
[424750434,1781124643000,-500.0,0.00014999,2]
[424750447,1781124643000,-500.0,0.00014999,2]
[424750450,1781124643000,-500.0,0.00014999,2]
[424750440,1781124643000,-500.0,0.00014999,2]
[424750444,1781124643000,-500.0,0.00014999,2]
[424750442,1781124643000,-500.0,0.00014999,2]
[424750443,1781124643000,-500.0,0.00014999,2]
[424750441,1781124643000,-267.12,0.00014999,2]
[424750446,1781124643000,-2000.0,0.00014999,2]
[424750445,1781124643000,-517.7,0.00014999,2]
[424750449,1781124643000,-500.0,0.00014999,2]
[424750452,1781124643000,-500.0,0.00014999,2]
[424750522,1781124644000,-854.84562266,0.00016025,2]
[424750518,1781124644000,-854.84562266,0.00015983,2]
[424750519,1781124644000,-854.84562266,0.00015996,2]
[424750516,1781124644000,-854.84562266,0.00015952,2]
[424750511,1781124644000,-854.84562266,0.00015917,2]
[424750517,1781124644000,-854.84562266,0.00015971,2]
[424750514,1781124644000,-854.84562266,0.00015947,2]
[424750515,1781124644000,-854.84562266,0.00015948,2]
[424750512,1781124644000,-195.45549,0.00015924,2]
[424750526,1781124644000,-854.84562266,0.00016065,2]
[424750513,1781124644000,-854.84562266,0.00015928,2]
[424750528,1781124644000,-5060.50245357,0.000161,2]
[424750531,1781124644000,-854.84562266,0.00016148,2]
[424750520,1781124644000,-300.0,0.00016,2]
[424750521,1781124644000,-191.7390802,0.00016,2]
[424750525,1781124644000,-854.84562266,0.00016063,2]
[424750524,1781124644000,-1672.7364795,0.00016057,2]
[424750527,1781124644000,-854.84562266,0.00016066,2]
[424750529,1781124644000,-980.82664043,0.0001611,15]
[424750538,1781124644000,-854.84562266,0.00016196,2]
[424750539,1781124644000,-5060.50245357,0.000162,2]
[424750534,1781124644000,-854.84562266,0.00016167,2]
[424750530,1781124644000,-854.84562266,0.00016116,2]
[424750510,1781124644000,-5060.50245357,0.000159,2]
[424750523,1781124644000,-854.84562266,0.00016044,2]
[424750507,1781124644000,-502.32,0.00015827,2]
[424750481,1781124644000,-3000.0,0.00015,2]
[424750508,1781124644000,-854.84562266,0.00015865,2]
[424750483,1781124644000,-1781.89,0.00015,2]
[424750482,1781124644000,-1276.53,0.00015,2]
[424750485,1781124644000,-151.0,0.00015,2]
[424750486,1781124644000,-151.0,0.00015,2]
[424750488,1781124644000,-344.8962505,0.00015,2]
[424750492,1781124644000,-5060.50245357,0.000153,2]
[424750484,1781124644000,-1069.13,0.00015,2]
[424750490,1781124644000,-5060.50245357,0.000152,2]
[424750487,1781124644000,-1000.0,0.00015,2]
[424750489,1781124644000,-350.0,0.00015014,3]
[424750493,1781124644000,-400.0,0.000153,2]
[424750491,1781124644000,-400.0,0.000152,2]
[424750497,1781124644000,-1613.0535,0.00015509,2]
[424750495,1781124644000,-5060.50245357,0.000155,2]
[424750494,1781124644000,-620.55,0.0001539,2]
[424750505,1781124644000,-413.78036,0.00015658,2]
[424750496,1781124644000,-400.0,0.000155,2]
[424750498,1781124644000,-10000.0,0.0001554,2]
[424750503,1781124644000,-151.0,0.00015613,2]
[424750501,1781124644000,-5060.50245357,0.000156,2]
[424750500,1781124644000,-335.127659,0.0001558,2]
[424750502,1781124644000,-400.0,0.000156,2]
[424750499,1781124644000,-1099.5224375,0.00015564,2]
[424750504,1781124644000,-1849.17979731,0.00015624,2]
[424750506,1781124644000,-5060.50245357,0.000158,2]
[424750509,1781124644000,-854.84562266,0.00015878,2]